[Event "3rd Sharjah Masters 2019"]
[Site "Sharjah"]
[Date "2019.03.22"]
[Round "1.39"]
[White "Iniyan, P."]
[Black "Parthasarathy R"]
[Result "1-0"]
[ECO "A50"]
[WhiteElo "2487"]
[BlackElo "1345"]
[Annotator "RC"]
[PlyCount "59"]
[EventDate "2019.03.22"]
[EventType "swiss"]
[EventCountry "UAE"]
[SourceTitle "playchess.com"]
[Source "ChessBase"]
[SourceQuality "1"]
[TimeControl "5400+30"]

1. d4 {[%emt 0:00:18]} Nf6 {[%emt 0:00:00]} 2. c4 {[%emt 0:00:05]} g6 {[%emt 0:00:16]} 3. f3 {[%emt 0:00:05]} Bg7 {[%emt 0:00:34]} 4. e4 {[%emt 0:00:06]} d6 {[%emt 0:00:30]} 5. Ne2 {[%emt 0:00:07]} O-O {[%emt 0:00:34]} 6. Be3 {[%emt 0:00:04]} c5 {[%emt 0:00:16]} 7. d5 {[%emt 0:00:09]} e6 {[%emt 0:01:13]} 8. Nec3 {[%emt 0:00:07]} a6 {[%emt 0:14:43]} 9. a4 {[%emt 0:00:07]} exd5 {[%emt 0:16:57]} 10. cxd5 {[%emt 0:00:13]} Nh5 {[%emt 0:00:11]} 11. g4 {[%emt 0:02:34]} Nf6 {[%emt 0:07:46]} 12. Nd2 {[%emt 0:01:09]} Nbd7 {[%emt 0:00:59]} 13. h4 {[%emt 0:01:33]} Ne5 {[%emt 0:01:48]} 14. h5 {[%emt 0:11:04]} Nfxg4 {[%emt 0:07:01]} 15. fxg4 {[%emt 0:00:07]} Bxg4 {[%emt 0:00:29]} 16. Qc2 {[%emt 0:03:56]} Bxh5 {[%emt 0:08:09]} 17. Ne2 {[%emt 0:12:32]} b5 {[%emt 0:05:15]} 18. Rxh5 {[%emt 0:10:50]} gxh5 {[%emt 0:00:09]} 19. Ng3 {[%emt 0:00:10]} Ng4 {[%emt 0:02:12]} 20. Bf4 {[%emt 0:00:11]} Qf6 {[%emt 0:11:07]} 21. Nf5 {[%emt 0:00:08]} c4 {[%emt 0:00:29]} 22. Bxd6 {[%emt 0:10:29]} Rfe8 {[%emt 0:02:32]} 23. O-O-O {[%emt 0:01:32]} Rac8 {[%emt 0:05:15]} 24. Bb4 {[%emt 0:00:43]} Qg5 {[%emt 0:07:15]} 25. Nxg7 {[%emt 0:05:33]} Kxg7 {[%emt 0:01:58]} 26. Kb1 {[%emt 0:01:17]} f6 {[%emt 0:00:52]} 27. Qc3 {[%emt 0:01:35]} Qf4 {[%emt 0:01:16]} 28. Bh3 {[%emt 0:00:24]} Rcd8 {[%emt 0:00:37]} 29. Rf1 {[%emt 0:00:37]} Qe3 {[%emt 0:01:46]} 30. Bxg4 {[%emt 0:00:08]} 1-0

[Event "3rd Sharjah Masters 2019"]
[Site "Sharjah"]
[Date "2019.03.23"]
[Round "2.47"]
[White "Mota, Pankit"]
[Black "Pranav Anand"]
[Result "0-1"]
[ECO "C54"]
[WhiteElo "1974"]
[BlackElo "2359"]
[Annotator "NA"]
[PlyCount "120"]
[EventDate "2019.03.22"]
[EventType "swiss"]
[EventCountry "UAE"]
[SourceTitle "playchess.com"]
[Source "ChessBase"]
[SourceQuality "1"]
[TimeControl "5400+30"]

1. e4 {[%emt 0:00:00]} e5 {[%emt 0:00:00]} 2. Nf3 {[%emt 0:00:00]} Nc6 {[%emt 0:00:00]} 3. Bc4 {[%emt 0:00:00]} Bc5 {[%emt 0:00:00]} 4. c3 {[%emt 0:00:09]} Nf6 {[%emt 0:00:00]} 5. d3 {[%emt 0:00:06]} d6 {[%emt 0:00:00]} 6. Bb3 {[%emt 0:00:06]} h6 {[%emt 0:00:06]} 7. Nbd2 {[%emt 0:06:28]} O-O {[%emt 0:00:16]} 8. h3 {[%emt 0:01:04]} a5 {[%emt 0:01:43]} 9. Nf1 {[%emt 0:01:51]} Be6 {[%emt 0:00:50]} 10. Bc2 {[%emt 0:17:30]} d5 {[%emt 0:01:59]} 11. Qe2 {[%emt 0:02:54]} a4 {[%emt 0:10:31]} 12. Ng3 {[%emt 0:05:38]} Re8 {[%emt 0:02:31]} 13. O-O {[%emt 0:03:59]} Bb6 {[%emt 0:06:07]} 14. a3 {[%emt 0:14:24]} Nd7 {[%emt 0:03:07]} 15. Rd1 {[%emt 0:06:12]} d4 {[%emt 0:13:36]} 16. Nh5 {[%emt 0:06:13]} Bc5 {[%emt 0:02:33]} 17. g4 {[%emt 0:04:57]} g6 {[%emt 0:02:28]} 18. Ng3 {[%emt 0:04:02]} Kg7 {[%emt 0:05:48]} 19. Kh2 {[%emt 0:02:15]} Rh8 {[%emt 0:00:16]} 20. Rg1 {[%emt 0:02:40]} Kf8 {[%emt 0:00:19]} 21. c4 {[%emt 0:02:55]} Bd6 {[%emt 0:01:38]} 22. Bd2 {[%emt 0:01:31]} Qb8 {[%emt 0:02:20]} 23. Nh4 {[%emt 0:02:21]} g5 {[%emt 0:08:27]} 24. Nhf5 {[%emt 0:01:51]} Bc5 {[%emt 0:00:07]} 25. Nh5 {[%emt 0:03:22]} b5 {[%emt 0:01:14]} 26. Nfg7 {[%emt 0:02:11]} bxc4 {[%emt 0:01:19]} 27. Nxe6+ {[%emt 0:01:28]} fxe6 {[%emt 0:00:01]} 28. dxc4 {[%emt 0:00:08]} d3 {[%emt 0:03:56]} 29. Qxd3 {[%emt 0:00:57]} Nd4 {[%emt 0:00:11]} 30. Bc3 {[%emt 0:01:04]} Ke7 {[%emt 0:00:25]} 31. Rgf1 {[%emt 0:03:59]} Rf8 {[%emt 0:01:22]} 32. Rad1 {[%emt 0:00:47]} Rf3 {[%emt 0:02:29]} 33. Qd2 {[%emt 0:00:22]} Qf8 {[%emt 0:01:02]} 34. Bxd4 {[%emt 0:01:13]} Bxd4 {[%emt 0:01:19]} 35. Kg2 {[%emt 0:00:07]} Rb8 {[%emt 0:02:36]} 36. Qe2 {[%emt 0:00:24]} Rf7 {[%emt 0:00:46]} 37. Bxa4 {[%emt 0:01:12]} Nc5 {[%emt 0:01:26]} 38. Bb5 {[%emt 0:00:18]} c6 {[%emt 0:01:14]} 39. b4 {[%emt 0:02:02]} Nxe4 {[%emt 0:00:53]} 40. Rxd4 {[%emt 0:00:45]} exd4 {[%emt 0:00:11]} 41. Qxe4 {[%emt 0:00:04]} cxb5 {[%emt 0:00:12]} 42. Qxd4 {[%emt 0:00:21]} Qc8 {[%emt 0:00:56]} 43. Rd1 {[%emt 0:00:39]} Qc6+ {[%emt 0:01:45]} 44. Kg1 {[%emt 0:00:05]} bxc4 {[%emt 0:00:14]} 45. b5 {[%emt 0:00:53]} Qb6 {[%emt 0:01:26]} 46. Qxb6 {[%emt 0:01:00]} Rxb6 {[%emt 0:00:01]} 47. a4 {[%emt 0:00:01]} Rf8 {[%emt 0:01:05]} 48. Rc1 {[%emt 0:00:27]} Rc8 {[%emt 0:00:11]} 49. Ng3 {[%emt 0:00:01]} Rbb8 {[%emt 0:02:45]} 50. Ne4 {[%emt 0:00:13]} Ra8 {[%emt 0:00:07]} 51. Nc3 {[%emt 0:00:04]} Kd6 {[%emt 0:00:27]} 52. b6 {[%emt 0:00:09]} Kc6 {[%emt 0:01:11]} 53. Rb1 {[%emt 0:01:19]} Rcb8 {[%emt 0:00:08]} 54. Rb4 {[%emt 0:00:45]} Kc5 {[%emt 0:02:12]} 55. Rb5+ {[%emt 0:01:19]} Kd4 {[%emt 0:00:01]} 56. Ne2+ {[%emt 0:00:23]} Kd3 {[%emt 0:00:06]} 57. Nc1+ {[%emt 0:00:35]} Kd2 {[%emt 0:00:11]} 58. Na2 {[%emt 0:00:39]} Rxa4 {[%emt 0:02:26]} 59. Nb4 {[%emt 0:00:02]} c3 {[%emt 0:00:33]} 60. b7 {[%emt 0:00:51]} Rxb4 {[%emt 0:00:21]} 0-1

[Event "3rd Sharjah Masters 2019"]
[Site "Sharjah"]
[Date "2019.03.23"]
[Round "2.48"]
[White "Ravi, Thandalam Shanmugam"]
[Black "Sri, Sai Baswanth P"]
[Result "0-1"]
[ECO "B08"]
[WhiteElo "2276"]
[BlackElo "2018"]
[Annotator "NA"]
[PlyCount "60"]
[EventDate "2019.03.22"]
[EventType "swiss"]
[EventCountry "UAE"]
[SourceTitle "playchess.com"]
[Source "ChessBase"]
[SourceQuality "1"]
[TimeControl "5400+30"]

1. e4 {[%emt 0:06:56]} g6 {[%emt 0:00:37]} 2. d4 {[%emt 0:00:38]} Bg7 {[%emt 0:00:10]} 3. Nf3 {[%emt 0:00:14]} d6 {[%emt 0:00:14]} 4. h3 {[%emt 0:02:38]} Nf6 {[%emt 0:00:18]} 5. Nc3 {[%emt 0:00:07]} O-O {[%emt 0:00:58]} 6. Be3 {[%emt 0:00:12]} c6 {[%emt 0:00:40]} 7. a4 {[%emt 0:00:14]} d5 {[%emt 0:02:05]} 8. e5 {[%emt 0:04:27]} Ne4 {[%emt 0:01:39]} 9. Bd3 {[%emt 0:10:38]} Nxc3 {[%emt 0:02:36]} 10. bxc3 {[%emt 0:01:52]} c5 {[%emt 0:01:24]} 11. Qd2 {[%emt 0:03:48]} c4 {[%emt 0:17:15]} 12. Be2 {[%emt 0:00:09]} Nc6 {[%emt 0:00:48]} 13. O-O {[%emt 0:03:36]} Bd7 {[%emt 0:05:04]} 14. Nh2 {[%emt 0:02:59]} a6 {[%emt 0:02:52]} 15. Rfe1 {[%emt 0:07:26]} b5 {[%emt 0:01:11]} 16. axb5 {[%emt 0:00:56]} axb5 {[%emt 0:00:05]} 17. Bf3 {[%emt 0:06:18]} Be6 {[%emt 0:01:54]} 18. Nf1 {[%emt 0:15:45]} Ra4 {[%emt 0:07:42]} 19. Rxa4 {[%emt 0:05:17]} bxa4 {[%emt 0:00:06]} 20. Qc1 {[%emt 0:00:20]} Qa5 {[%emt 0:04:42]} 21. Qa3 {[%emt 0:00:10]} Bf5 {[%emt 0:00:43]} 22. Rc1 {[%emt 0:04:59]} Ra8 {[%emt 0:01:09]} 23. Nd2 {[%emt 0:02:57]} Bd7 {[%emt 0:06:02]} 24. Rb1 {[%emt 0:02:07]} e6 {[%emt 0:01:17]} 25. Qd6 {[%emt 0:07:11]} Be8 {[%emt 0:00:44]} 26. Nxc4 {[%emt 0:02:55]} dxc4 {[%emt 0:00:16]} 27. Bxc6 {[%emt 0:00:10]} Bf8 {[%emt 0:00:28]} 28. Rb8 {[%emt 0:01:14]} Rxb8 {[%emt 0:00:49]} 29. Qxb8 {[%emt 0:03:27]} Bxc6 {[%emt 0:00:11]} 30. Bh6 {[%emt 0:02:23]} Qa8 {[%emt 0:00:05]} 0-1

[Event "3rd Sharjah Masters 2019"]
[Site "Sharjah"]
[Date "2019.03.24"]
[Round "3.33"]
[White "Sadhwani, Raunak"]
[Black "Abdurakhmonov, Mukhammadali"]
[Result "1-0"]
[ECO "B07"]
[WhiteElo "2455"]
[BlackElo "2205"]
[Annotator "RC"]
[PlyCount "45"]
[EventDate "2019.03.22"]
[EventType "swiss"]
[EventCountry "UAE"]
[SourceTitle "playchess.com"]
[Source "ChessBase"]
[SourceQuality "1"]
[TimeControl "5400+30"]

1. d4 {[%emt 0:00:00]} Nf6 {[%emt 0:00:52]} 2. Nc3 {[%emt 0:00:00]} g6 {[%emt 0:00:40]} 3. e4 {[%emt 0:00:14]} d6 {[%emt 0:00:05]} 4. Bf4 {[%emt 0:01:38]} c6 {[%emt 0:05:57]} 5. Qd2 {[%emt 0:00:08]} b5 {[%emt 0:01:04]} 6. e5 {[%emt 0:01:03]} dxe5 {[%emt 0:04:28]} 7. dxe5 {[%emt 0:00:30]} Qxd2+ {[%emt 0:00:12]} 8. Bxd2 {[%emt 0:00:47]} Nfd7 {[%emt 0:00:54]} 9. f4 {[%emt 0:02:48]} Nb6 {[%emt 0:01:23]} 10. Nf3 {[%emt 0:08:08]} a6 {[%emt 0:22:00]} 11. a4 {[%emt 0:05:28]} b4 {[%emt 0:04:53]} 12. Ne4 {[%emt 0:00:07]} a5 {[%emt 0:04:09]} 13. Nd4 {[%emt 0:04:23]} Bh6 {[%emt 0:03:48]} 14. h4 {[%emt 0:19:20]} Ba6 {[%emt 0:15:21]} 15. h5 {[%emt 0:04:01]} Bxf1 {[%emt 0:01:01]} 16. Kxf1 {[%emt 0:00:12]} Nd5 {[%emt 0:06:52]} 17. g3 {[%emt 0:01:05]} Bg7 {[%emt 0:00:45]} 18. h6 {[%emt 0:00:15]} Bf8 {[%emt 0:00:07]} 19. e6 {[%emt 0:00:03]} f5 {[%emt 0:03:55]} 20. Ng5 {[%emt 0:01:14]} c5 {[%emt 0:00:26]} 21. Nb5 {[%emt 0:01:03]} Na6 {[%emt 0:00:20]} 22. c4 {[%emt 0:02:05]} bxc3 {[%emt 0:02:42]} 23. Bxc3 {[%emt 0:00:12]} 1-0

[Event "3rd Sharjah Masters 2019"]
[Site "Sharjah"]
[Date "2019.03.24"]
[Round "3.39"]
[White "Chekh Adm Khedr, Aram"]
[Black "Tissir, Mohamed"]
[Result "0-1"]
[ECO "B90"]
[WhiteElo "2155"]
[BlackElo "2386"]
[Annotator "NA"]
[PlyCount "52"]
[EventDate "2019.03.22"]
[EventType "swiss"]
[EventCountry "UAE"]
[SourceTitle "playchess.com"]
[Source "ChessBase"]
[SourceQuality "1"]
[TimeControl "5400+30"]

1. e4 {[%emt 0:00:00]} c5 {[%emt 0:00:00]} 2. Nf3 {[%emt 0:00:00]} d6 {[%emt 0:04:00]} 3. d4 {[%emt 0:02:28]} cxd4 {[%emt 0:00:06]} 4. Nxd4 {[%emt 0:00:11]} Nf6 {[%emt 0:00:09]} 5. Nc3 {[%emt 0:00:05]} a6 {[%emt 0:00:23]} 6. h4 {[%emt 0:07:28]} e6 {[%emt 0:02:12]} 7. g4 {[%emt 0:00:15]} b5 {[%emt 0:00:30]} 8. g5 {[%emt 0:00:06]} Nfd7 {[%emt 0:00:01]} 9. a3 {[%emt 0:00:08]} Bb7 {[%emt 0:00:08]} 10. Be3 {[%emt 0:00:21]} Nb6 {[%emt 0:01:59]} 11. Qh5 {[%emt 0:02:20]} g6 {[%emt 0:01:13]} 12. Qg4 {[%emt 0:00:01]} N8d7 {[%emt 0:00:16]} 13. h5 {[%emt 0:00:02]} Ne5 {[%emt 0:02:24]} 14. Qh3 {[%emt 0:00:36]} gxh5 {[%emt 0:22:45]} 15. Be2 {[%emt 0:00:41]} Nbc4 {[%emt 0:01:17]} 16. Bxh5 {[%emt 0:03:56]} Nxe3 {[%emt 0:03:48]} 17. Qxe3 {[%emt 0:05:00]} Qe7 {[%emt 0:02:14]} 18. O-O-O {[%emt 0:06:08]} O-O-O {[%emt 0:01:42]} 19. f4 {[%emt 0:06:17]} Nc4 {[%emt 0:00:11]} 20. Qd3 {[%emt 0:00:01]} Bg7 {[%emt 0:05:24]} 21. a4 {[%emt 0:04:19]} d5 {[%emt 0:06:00]} 22. e5 {[%emt 0:33:31]} Qb4 {[%emt 0:08:26]} 23. Nb3 {[%emt 0:02:09]} bxa4 {[%emt 0:00:10]} 24. Na2 {[%emt 0:02:44]} Qb6 {[%emt 0:02:58]} 25. Qc3 {[%emt 0:00:07]} axb3 {[%emt 0:00:18]} 26. cxb3 {[%emt 0:00:03]} Qe3+ {[%emt 0:00:15]} 0-1

[Event "3rd Sharjah Masters 2019"]
[Site "Sharjah"]
[Date "2019.03.24"]
[Round "3.41"]
[White "Dr., Murtaza Ali"]
[Black "Saurabh Anand"]
[Result "0-1"]
[ECO "C55"]
[WhiteElo "2084"]
[BlackElo "2385"]
[Annotator "NA"]
[PlyCount "62"]
[EventDate "2019.03.22"]
[EventType "swiss"]
[EventCountry "UAE"]
[SourceTitle "playchess.com"]
[Source "ChessBase"]
[SourceQuality "1"]
[TimeControl "5400+30"]

1. e4 {[%emt 0:00:00]} e5 {[%emt 0:00:00]} 2. Nf3 {[%emt 0:00:00]} Nc6 {[%emt 0:00:00]} 3. Bc4 {[%emt 0:00:19]} Nf6 {[%emt 0:00:04]} 4. O-O {[%emt 0:01:16]} Nxe4 {[%emt 0:01:32]} 5. Qe2 {[%emt 0:02:57]} d5 {[%emt 0:03:33]} 6. Bb5 {[%emt 0:00:15]} f6 {[%emt 0:10:20]} 7. d4 {[%emt 0:04:48]} Qd6 {[%emt 0:02:55]} 8. dxe5 {[%emt 0:12:50]} fxe5 {[%emt 0:00:19]} 9. Nc3 {[%emt 0:01:24]} Nxc3 {[%emt 0:01:00]} 10. bxc3 {[%emt 0:00:01]} e4 {[%emt 0:00:58]} 11. Nd4 {[%emt 0:00:44]} Bd7 {[%emt 0:09:01]} 12. Bxc6 {[%emt 0:04:31]} Bxc6 {[%emt 0:00:47]} 13. Rb1 {[%emt 0:01:01]} Be7 {[%emt 0:08:01]} 14. Qh5+ {[%emt 0:09:41]} g6 {[%emt 0:02:01]} 15. Qh6 {[%emt 0:00:46]} Bf8 {[%emt 0:03:44]} 16. Qh4 {[%emt 0:00:56]} Bg7 {[%emt 0:00:47]} 17. Bf4 {[%emt 0:06:45]} Qd7 {[%emt 0:00:28]} 18. Qg3 {[%emt 0:03:52]} Rc8 {[%emt 0:03:08]} 19. Be5 {[%emt 0:04:15]} O-O {[%emt 0:00:47]} 20. Bxg7 {[%emt 0:00:39]} Kxg7 {[%emt 0:00:36]} 21. f3 {[%emt 0:00:18]} Rce8 {[%emt 0:01:26]} 22. fxe4 {[%emt 0:00:43]} dxe4 {[%emt 0:00:53]} 23. Rxf8 Rxf8 {[%emt 0:01:31]} 24. Qe5+ {[%emt 0:01:32]} Kg8 {[%emt 0:00:17]} 25. Re1 {[%emt 0:18:51]} Qf7 {[%emt 0:04:08]} 26. Qg3 {[%emt 0:01:22]} Bd5 {[%emt 0:02:47]} 27. h3 {[%emt 0:00:56]} c5 {[%emt 0:06:25]} 28. Nb5 {[%emt 0:01:21]} a6 {[%emt 0:00:22]} 29. Nd6 {[%emt 0:00:04]} Qe6 {[%emt 0:00:45]} 30. c4 {[%emt 0:01:24]} Bc6 {[%emt 0:00:00]} 31. Rf1 {[%emt 0:01:50]} e3 {[%emt 0:00:58]} 0-1

[Event "3rd Sharjah Masters 2019"]
[Site "Sharjah"]
[Date "2019.03.24"]
[Round "3.42"]
[White "Salem, Ahmed Salem"]
[Black "Sukandar, Irine Kharisma"]
[Result "0-1"]
[ECO "B90"]
[WhiteElo "2069"]
[BlackElo "2381"]
[Annotator "NA"]
[PlyCount "80"]
[EventDate "2019.03.22"]
[EventType "swiss"]
[EventCountry "UAE"]
[SourceTitle "playchess.com"]
[Source "ChessBase"]
[SourceQuality "1"]
[TimeControl "5400+30"]

1. e4 {[%emt 0:09:44]} c5 {[%emt 0:00:00]} 2. Nf3 {[%emt 0:00:05]} d6 {[%emt 0:00:14]} 3. d4 {[%emt 0:00:04]} Nf6 {[%emt 0:00:15]} 4. Nc3 {[%emt 0:01:00]} cxd4 {[%emt 0:00:26]} 5. Nxd4 {[%emt 0:00:16]} a6 {[%emt 0:00:26]} 6. Bc4 {[%emt 0:01:14]} e6 {[%emt 0:00:27]} 7. Bb3 {[%emt 0:00:22]} Be7 {[%emt 0:00:41]} 8. Be3 {[%emt 0:00:08]} O-O {[%emt 0:01:52]} 9. Qe2 {[%emt 0:01:14]} Nc6 {[%emt 0:01:46]} 10. O-O-O {[%emt 0:00:14]} Qc7 {[%emt 0:01:18]} 11. f3 {[%emt 0:03:31]} Na5 {[%emt 0:02:06]} 12. g4 {[%emt 0:02:01]} b5 {[%emt 0:02:18]} 13. g5 {[%emt 0:01:14]} Nxb3+ {[%emt 0:00:41]} 14. axb3 {[%emt 0:03:39]} Nd7 {[%emt 0:01:13]} 15. h4 {[%emt 0:02:23]} b4 {[%emt 0:02:53]} 16. Na4 {[%emt 0:01:46]} Nc5 {[%emt 0:04:05]} 17. Qc4 {[%emt 0:08:40]} Bd7 {[%emt 0:03:48]} 18. Qxb4 {[%emt 0:02:42]} Nxa4 {[%emt 0:02:26]} 19. bxa4 {[%emt 0:00:38]} Rfc8 {[%emt 0:00:19]} 20. Rd3 {[%emt 0:06:42]} Rab8 {[%emt 0:02:52]} 21. Qa3 {[%emt 0:00:26]} Qd8 {[%emt 0:08:00]} 22. Rc3 {[%emt 0:03:20]} d5 {[%emt 0:07:38]} 23. Rxc8 {[%emt 0:00:40]} Rxc8 {[%emt 0:00:06]} 24. Qd3 {[%emt 0:01:41]} Bxa4 {[%emt 0:02:33]} 25. e5 {[%emt 0:00:52]} Qa5 {[%emt 0:01:41]} 26. Kb1 {[%emt 0:03:02]} Bb5 {[%emt 0:02:38]} 27. Qd2 {[%emt 0:05:24]} Bb4 {[%emt 0:02:06]} 28. Qf2 {[%emt 0:02:06]} Bc4 {[%emt 0:00:57]} 29. Nb3 {[%emt 0:03:45]} Bxb3 {[%emt 0:00:28]} 30. cxb3 {[%emt 0:00:04]} Qb5 {[%emt 0:00:31]} 31. Rd1 {[%emt 0:01:09]} Bf8 {[%emt 0:02:22]} 32. Ka2 {[%emt 0:00:29]} Rb8 {[%emt 0:01:36]} 33. Qc2 {[%emt 0:00:34]} Qa5+ {[%emt 0:00:17]} 34. Kb1 {[%emt 0:00:10]} Qb4 {[%emt 0:00:11]} 35. Ka2 {[%emt 0:01:28]} Qxh4 {[%emt 0:01:04]} 36. f4 {[%emt 0:00:34]} Qh3 {[%emt 0:01:04]} 37. Qc7 {[%emt 0:01:18]} Rb5 {[%emt 0:00:44]} 38. Rd3 {[%emt 0:00:10]} d4 {[%emt 0:01:59]} 39. b4 {[%emt 0:03:04]} Rd5 {[%emt 0:05:25]} 40. Qb8 {[%emt 0:00:06]} Qf1 {[%emt 0:02:27]} 0-1

[Event "3rd Sharjah Masters 2019"]
[Site "Sharjah"]
[Date "2019.03.24"]
[Round "3.43"]
[White "Assaubayeva, Bibisara"]
[Black "Mihoubi, Saad"]
[Result "1-0"]
[ECO "D43"]
[WhiteElo "2376"]
[BlackElo "2088"]
[Annotator "NA"]
[PlyCount "61"]
[EventDate "2019.03.22"]
[EventType "swiss"]
[EventCountry "UAE"]
[SourceTitle "playchess.com"]
[Source "ChessBase"]
[SourceQuality "1"]
[TimeControl "5400+30"]

1. d4 {[%emt 0:00:06]} d5 {[%emt 0:00:00]} 2. c4 {[%emt 0:00:10]} Nf6 {[%emt 0:00:00]} 3. Nf3 {[%emt 0:00:54]} e6 {[%emt 0:00:50]} 4. Nc3 {[%emt 0:00:25]} c6 {[%emt 0:01:00]} 5. Bg5 {[%emt 0:00:42]} Be7 {[%emt 0:00:23]} 6. e3 {[%emt 0:00:33]} O-O {[%emt 0:01:02]} 7. Qc2 {[%emt 0:00:56]} Nbd7 {[%emt 0:01:09]} 8. Rd1 {[%emt 0:01:08]} h6 {[%emt 0:00:24]} 9. Bh4 {[%emt 0:00:32]} dxc4 {[%emt 0:06:49]} 10. Bxc4 {[%emt 0:00:32]} b5 {[%emt 0:01:34]} 11. Bd3 {[%emt 0:05:55]} Bb7 {[%emt 0:01:13]} 12. O-O {[%emt 0:04:22]} Qb6 {[%emt 0:07:21]} 13. Ne5 {[%emt 0:05:00]} Bd6 {[%emt 0:03:45]} 14. Nxd7 {[%emt 0:03:51]} Nxd7 {[%emt 0:00:13]} 15. Ne4 {[%emt 0:01:15]} Qc7 {[%emt 0:01:43]} 16. h3 {[%emt 0:06:44]} Bh2+ {[%emt 0:05:33]} 17. Kh1 {[%emt 0:00:07]} g5 {[%emt 0:12:42]} 18. Bg3 {[%emt 0:03:41]} Bxg3 {[%emt 0:00:18]} 19. Nxg3 {[%emt 0:00:13]} Nf6 {[%emt 0:04:19]} 20. Bxb5 {[%emt 0:02:24]} Rfc8 {[%emt 0:02:35]} 21. Be2 {[%emt 0:06:14]} a5 {[%emt 0:07:45]} 22. Rc1 {[%emt 0:03:15]} a4 {[%emt 0:00:34]} 23. Bf3 {[%emt 0:06:46]} Ra5 {[%emt 0:01:40]} 24. Qd2 {[%emt 0:02:49]} Qb6 {[%emt 0:03:22]} 25. Rc2 {[%emt 0:02:07]} Rb5 {[%emt 0:02:11]} 26. Rfc1 {[%emt 0:03:54]} Kg7 {[%emt 0:02:10]} 27. Be2 {[%emt 0:01:24]} Rd5 {[%emt 0:01:22]} 28. Rc5 {[%emt 0:03:50]} Rcd8 {[%emt 0:00:56]} 29. Qc3 {[%emt 0:06:04]} Rb8 {[%emt 0:05:06]} 30. Bf3 {[%emt 0:01:08]} Rdd8 {[%emt 0:04:27]} 31. d5 {[%emt 0:01:26]} 1-0

[Event "3rd Sharjah Masters 2019"]
[Site "Sharjah"]
[Date "2019.03.24"]
[Round "3.45"]
[White "Rathnakaran, K.."]
[Black "Mrudul, Dehankar"]
[Result "1-0"]
[ECO "C77"]
[WhiteElo "2361"]
[BlackElo "2078"]
[Annotator "NA"]
[PlyCount "85"]
[EventDate "2019.03.22"]
[EventType "swiss"]
[EventCountry "UAE"]
[SourceTitle "playchess.com"]
[Source "ChessBase"]
[SourceQuality "1"]
[TimeControl "5400+30"]

1. e4 {[%emt 0:00:00]} e5 {[%emt 0:00:01]} 2. Nf3 {[%emt 0:00:00]} Nc6 {[%emt 0:00:05]} 3. Bb5 {[%emt 0:00:00]} a6 {[%emt 0:00:05]} 4. Ba4 {[%emt 0:00:00]} Nf6 {[%emt 0:00:07]} 5. Qe2 {[%emt 0:00:00]} b5 {[%emt 0:05:18]} 6. Bb3 {[%emt 0:00:00]} Bc5 {[%emt 0:02:21]} 7. a4 {[%emt 0:00:07]} Bb7 {[%emt 0:06:08]} 8. c3 {[%emt 0:00:33]} d6 {[%emt 0:11:08]} 9. O-O {[%emt 0:00:09]} O-O {[%emt 0:00:18]} 10. d3 {[%emt 0:00:36]} Bb6 {[%emt 0:11:58]} 11. Bg5 {[%emt 0:00:10]} h6 {[%emt 0:00:59]} 12. Bh4 {[%emt 0:00:05]} Nb8 {[%emt 0:01:32]} 13. axb5 {[%emt 0:00:54]} axb5 {[%emt 0:00:16]} 14. Rxa8 {[%emt 0:00:18]} Bxa8 {[%emt 0:00:09]} 15. Na3 {[%emt 0:00:02]} Bc6 {[%emt 0:08:53]} 16. Nc2 {[%emt 0:00:36]} Nbd7 {[%emt 0:01:24]} 17. Ne3 {[%emt 0:01:03]} Nc5 {[%emt 0:06:40]} 18. Bd5 {[%emt 0:00:44]} Bxd5 {[%emt 0:10:57]} 19. Nxd5 {[%emt 0:02:17]} g5 {[%emt 0:07:04]} 20. Nxb6 {[%emt 0:00:07]} cxb6 {[%emt 0:07:18]} 21. Bg3 {[%emt 0:00:37]} Qe7 {[%emt 0:02:11]} 22. Ra1 {[%emt 0:00:15]} Qb7 {[%emt 0:02:37]} 23. Nd2 {[%emt 0:04:55]} Ra8 {[%emt 0:01:26]} 24. Re1 {[%emt 0:03:19]} Ra2 {[%emt 0:03:40]} 25. d4 {[%emt 0:03:20]} exd4 {[%emt 0:02:51]} 26. cxd4 {[%emt 0:01:58]} Ncxe4 {[%emt 0:01:04]} 27. Nxe4 {[%emt 0:07:10]} Qxe4 {[%emt 0:01:16]} 28. Qd1 {[%emt 0:00:14]} Qd5 {[%emt 0:00:34]} 29. h4 {[%emt 0:01:14]} Rxb2 {[%emt 0:01:10]} 30. hxg5 {[%emt 0:00:06]} hxg5 {[%emt 0:00:12]} 31. Qc1 {[%emt 0:00:10]} Ra2 {[%emt 0:02:43]} 32. Be5 {[%emt 0:00:20]} dxe5 {[%emt 0:01:41]} 33. Qxg5+ {[%emt 0:00:04]} Kf8 {[%emt 0:00:47]} 34. Qxf6 {[%emt 0:00:05]} e4 {[%emt 0:00:36]} 35. Rc1 {[%emt 0:08:17]} Ra8 {[%emt 0:00:24]} 36. Qh8+ {[%emt 0:00:13]} Ke7 {[%emt 0:00:06]} 37. Rc7+ {[%emt 0:00:07]} Kd6 {[%emt 0:01:21]} 38. Qh2+ {[%emt 0:00:05]} Ke6 {[%emt 0:00:17]} 39. Qh3+ {[%emt 0:00:12]} Kf6 {[%emt 0:00:19]} 40. Qh6+ {[%emt 0:00:03]} Kf5 {[%emt 0:00:16]} 41. Qh5+ {[%emt 0:00:13]} Ke6 {[%emt 0:00:09]} 42. Qxf7+ {[%emt 0:00:27]} Kd6 {[%emt 0:00:11]} 43. Qe7# {[%emt 0:00:06]} 1-0

[Event "3rd Sharjah Masters 2019"]
[Site "Sharjah"]
[Date "2019.03.24"]
[Round "3.47"]
[White "Gokhale, Anupama"]
[Black "Omar, Noaman"]
[Result "0-1"]
[ECO "A50"]
[WhiteElo "1994"]
[BlackElo "2356"]
[Annotator "NA"]
[PlyCount "62"]
[EventDate "2019.03.22"]
[EventType "swiss"]
[EventCountry "UAE"]
[SourceTitle "playchess.com"]
[Source "ChessBase"]
[SourceQuality "1"]
[TimeControl "5400+30"]

1. d4 {[%emt 0:00:00]} Nf6 {[%emt 0:01:36]} 2. c4 {[%emt 0:00:04]} b6 {[%emt 0:00:11]} 3. Nf3 {[%emt 0:01:22]} Bb7 {[%emt 0:00:10]} 4. g3 {[%emt 0:05:32]} c5 {[%emt 0:00:16]} 5. d5 {[%emt 0:02:27]} b5 {[%emt 0:00:06]} 6. Bg2 {[%emt 0:15:07]} g6 {[%emt 0:06:44]} 7. O-O {[%emt 0:04:09]} bxc4 {[%emt 0:00:08]} 8. Ne5 {[%emt 0:02:57]} Bg7 {[%emt 0:03:10]} 9. Nxc4 {[%emt 0:01:25]} d6 {[%emt 0:02:25]} 10. Nc3 {[%emt 0:05:47]} O-O {[%emt 0:00:50]} 11. Qc2 {[%emt 0:02:30]} Nbd7 {[%emt 0:01:39]} 12. h3 {[%emt 0:15:56]} Nb6 {[%emt 0:08:22]} 13. Ne3 {[%emt 0:01:38]} a5 {[%emt 0:08:24]} 14. Rb1 {[%emt 0:02:11]} a4 {[%emt 0:00:27]} 15. Rd1 {[%emt 0:07:03]} Ra6 {[%emt 0:01:39]} 16. Nf1 {[%emt 0:01:17]} Qa8 {[%emt 0:04:19]} 17. e4 {[%emt 0:00:20]} Rc8 {[%emt 0:00:59]} 18. Ne3 {[%emt 0:00:50]} Nfd7 {[%emt 0:00:17]} 19. b3 {[%emt 0:03:10]} axb3 {[%emt 0:01:50]} 20. axb3 {[%emt 0:00:06]} c4 {[%emt 0:00:26]} 21. b4 {[%emt 0:01:45]} Ne5 {[%emt 0:00:35]} 22. Ng4 {[%emt 0:02:00]} Nd3 {[%emt 0:00:52]} 23. Bh6 {[%emt 0:00:43]} Bh8 {[%emt 0:00:40]} 24. Qd2 {[%emt 0:01:47]} Nd7 {[%emt 0:01:37]} 25. Bg5 {[%emt 0:07:17]} Ra3 {[%emt 0:02:57]} 26. Bxe7 {[%emt 0:01:13]} Bxc3 {[%emt 0:00:58]} 27. Qg5 {[%emt 0:01:28]} Bg7 {[%emt 0:01:43]} 28. Bf1 {[%emt 0:01:56]} N3e5 {[%emt 0:04:10]} 29. Be2 {[%emt 0:01:17]} Qa7 {[%emt 0:03:40]} 30. Kf1 {[%emt 0:03:09]} c3 {[%emt 0:00:48]} 31. Rbc1 {[%emt 0:00:19]} Ra2 {[%emt 0:00:19]} 0-1